fUSD/lending_fUSD_20260516
["ID","MTS","AMOUNT","RATE_DAILY","PERIOD"]
[422383771,1778917834000,-500.0,0.00014799,2]
[422383779,1778917834000,-500.0,0.00014799,2]
[422383772,1778917834000,-500.0,0.00014799,2]
[422383770,1778917834000,-500.0,0.00014799,2]
[422383775,1778917834000,-500.0,0.00014799,2]
[422383768,1778917834000,-500.0,0.00014799,2]
[422383806,1778917835000,-500.0,0.00014799,2]
[422383804,1778917835000,-115.45927528,0.00014799,2]
[422383805,1778917835000,-500.0,0.00014799,2]
[422383807,1778917835000,-138.95881149,0.00014799,2]
[422383830,1778917838000,-212.0522951,0.00014799,2]
[422383829,1778917838000,-500.0,0.00014799,2]
[422383831,1778917838000,-500.0,0.00014799,2]
[422383845,1778917838000,-702.31,0.00014799,2]
[422383833,1778917838000,-500.0,0.00014799,2]
[422383847,1778917838000,-702.31,0.00014799,2]
[422383851,1778917838000,-702.31,0.00014799,2]
[422383834,1778917838000,-500.0,0.00014799,2]
[422383832,1778917838000,-500.0,0.00014799,2]
[422383842,1778917838000,-500.0,0.00014799,2]
[422383838,1778917838000,-500.0,0.00014799,2]
[422383836,1778917838000,-500.0,0.00014799,2]
[422383827,1778917838000,-500.0,0.00014799,2]
[422383849,1778917838000,-702.31,0.00014799,2]
[422383826,1778917838000,-500.0,0.00014799,2]
[422383811,1778917838000,-361.04118851,0.00014799,2]
[422383824,1778917838000,-500.0,0.00014799,2]
[422383840,1778917838000,-500.0,0.00014799,2]
[422383812,1778917838000,-500.0,0.00014799,2]
[422383813,1778917838000,-500.0,0.00014799,2]
[422383817,1778917838000,-500.0,0.00014799,2]
[422383816,1778917838000,-500.0,0.00014799,2]
[422383815,1778917838000,-500.0,0.00014799,2]
[422383828,1778917838000,-573.02950681,0.00014799,2]
[422383814,1778917838000,-490.0,0.00014799,2]
[422383819,1778917838000,-500.0,0.00014799,2]
[422383820,1778917838000,-500.0,0.00014799,2]
[422383821,1778917838000,-500.0,0.00014799,2]
[422383822,1778917838000,-500.0,0.00014799,2]
[422383823,1778917838000,-500.0,0.00014799,2]
[422383825,1778917838000,-500.0,0.00014799,2]
[422383818,1778917838000,-500.0,0.00014799,2]
[422383853,1778917838000,-702.31,0.00014799,2]
[422383859,1778917838000,-702.31,0.00014799,2]
[422383855,1778917838000,-702.31,0.00014799,2]
[422383892,1778917838000,-500.0,0.00014799,2]
[422383902,1778917838000,-231.50831789,0.000148,3]
[422383900,1778917838000,-30000.0,0.000148,2]
[422383904,1778917838000,-500.0,0.000148,5]
[422383917,1778917838000,-213.0,0.00014847,2]
[422383915,1778917838000,-4674.58759841,0.00014833,2]
[422383888,1778917838000,-500.0,0.00014799,2]
[422383921,1778917838000,-317.67547,0.0001485,2]
[422383907,1778917838000,-3435.5274321,0.00014811,2]
[422383911,1778917838000,-263.0,0.00014819,2]
[422383909,1778917838000,-4674.58759841,0.00014811,2]
[422383925,1778917838000,-4674.58759841,0.00014856,2]
[422383913,1778917838000,-3435.5274321,0.00014833,2]
[422383865,1778917838000,-504.92605126,0.00014799,2]
[422383922,1778917838000,-3435.5274321,0.00014856,2]
[422383894,1778917838000,-500.0,0.00014799,2]
[422383919,1778917838000,-317.67548,0.0001485,2]
[422383885,1778917838000,-500.0,0.00014799,2]
[422383857,1778917838000,-702.31,0.00014799,2]
[422383895,1778917838000,-500.0,0.00014799,2]
[422383867,1778917838000,-500.0,0.00014799,2]
[422383871,1778917838000,-500.0,0.00014799,2]
[422383861,1778917838000,-150.0,0.00014799,2]
[422383869,1778917838000,-500.0,0.00014799,2]
[422383873,1778917838000,-506.02433073,0.00014799,2]
[422383863,1778917838000,-500.0,0.00014799,2]
[422383877,1778917838000,-500.0,0.00014799,2]
[422383881,1778917838000,-500.0,0.00014799,2]
[422383898,1778917838000,-1843992.3436,0.000148,2]
[422383880,1778917838000,-529.54071265,0.00014799,2]
[422383884,1778917838000,-500.0,0.00014799,2]
[422383875,1778917838000,-500.0,0.00014799,2]
[422383889,1778917838000,-500.0,0.00014799,2]
[422383965,1778917839000,-198.31703428,0.00014986,2]
[422383963,1778917839000,-199.23,0.00014985,2]
[422383967,1778917839000,-151.0,0.00014997,2]
[422383961,1778917839000,-252.0,0.0001497,2]
[422383964,1778917839000,-231.35,0.00014986,2]
[422383971,1778917839000,-500.0,0.00014999,2]
[422383970,1778917839000,-500.0,0.00014999,2]
[422383968,1778917839000,-1078.84688241,0.00014999,5]
[422383962,1778917839000,-181.0,0.0001497,2]
[422383966,1778917839000,-151.0,0.00014997,2]
[422383969,1778917839000,-500.0,0.00014999,2]
[422383981,1778917839000,-472.41037642,0.00014999,2]
[422383974,1778917839000,-288.80366412,0.00014999,2]
[422383972,1778917839000,-500.0,0.00014999,2]
[422383978,1778917839000,-500.0,0.00014999,2]
[422383983,1778917839000,-647.12562257,0.00014999,2]
[422383979,1778917839000,-500.0,0.00014999,2]
[422383975,1778917839000,-500.0,0.00014999,2]
[422383976,1778917839000,-582.0407918,0.00014999,2]
[422383977,1778917839000,-500.0,0.00014999,2]
[422383980,1778917839000,-157.6152518,0.00014999,2]
[422383982,1778917839000,-500.0,0.00014999,2]
[422383957,1778917839000,-17603.46237904,0.000149,3]
[422383973,1778917839000,-628.81,0.00014999,2]
[422383958,1778917839000,-182.0,0.00014945,2]
[422383945,1778917839000,-500.0,0.00014899,2]
[422383955,1778917839000,-2140.56650933,0.000149,2]
[422383985,1778917839000,-500.0,0.00014999,2]
[422383927,1778917839000,-5000.01,0.00014857,2]
[422383928,1778917839000,-317.67548,0.0001486,2]
[422383943,1778917839000,-500.0,0.00014899,2]
[422383931,1778917839000,-3435.5274321,0.00014878,2]
[422383942,1778917839000,-500.0,0.00014899,2]
[422383944,1778917839000,-500.0,0.00014899,2]
[422383947,1778917839000,-500.0,0.00014899,2]
[422383946,1778917839000,-500.0,0.00014899,2]
[422383933,1778917839000,-4674.58759841,0.00014878,2]
[422383937,1778917839000,-500.0,0.00014899,2]
[422383938,1778917839000,-500.0,0.00014899,2]
[422383940,1778917839000,-500.0,0.00014899,2]
[422383935,1778917839000,-500.0,0.00014878,2]
[422383949,1778917839000,-664.0,0.000149,5]
[422383959,1778917839000,-193.9447139,0.0001496,2]
[422383948,1778917839000,-983.8498,0.000149,2]
[422383952,1778917839000,-3435.5274321,0.000149,2]
[422383956,1778917839000,-191.83951958,0.000149,2]
[422383950,1778917839000,-906.648,0.000149,2]
[422383951,1778917839000,-180.868,0.000149,2]
[422383960,1778917839000,-207.0,0.0001497,2]
[422383953,1778917839000,-4674.58759841,0.000149,2]
[422383954,1778917839000,-500.0,0.000149,5]
[422383984,1778917839000,-500.0,0.00014999,2]
[422384012,1778917839000,-702.31,0.00014999,2]
[422383995,1778917839000,-500.0,0.00014999,2]
[422384013,1778917839000,-702.31,0.00014999,2]
[422384016,1778917839000,-702.31,0.00014999,2]
[422384014,1778917839000,-702.31,0.00014999,2]
[422384040,1778917839000,-150.0,0.00015,2]
[422384020,1778917839000,-702.31,0.00014999,2]
[422384018,1778917839000,-702.31,0.00014999,2]
[422384017,1778917839000,-702.31,0.00014999,2]
[422384025,1778917839000,-500.0,0.00014999,2]
[422384037,1778917839000,-666.0,0.00014999,2]
[422384026,1778917839000,-500.0,0.00014999,2]
[422384036,1778917839000,-300.0,0.00014999,2]
[422384027,1778917839000,-500.0,0.00014999,2]
[422384028,1778917839000,-500.0,0.00014999,2]
[422384030,1778917839000,-500.0,0.00014999,2]
[422384034,1778917839000,-300.0,0.00014999,2]
[422384035,1778917839000,-300.0,0.00014999,2]
[422384029,1778917839000,-500.0,0.00014999,2]
[422384031,1778917839000,-500.0,0.00014999,2]
[422384033,1778917839000,-311.98,0.00014999,2]
[422384032,1778917839000,-314.56,0.00014999,2]
[422384039,1778917839000,-823.0,0.00015,5]
[422384041,1778917839000,-2385955.49947726,0.00015,2]
[422384038,1778917839000,-300.0,0.00014999,2]
[422384011,1778917839000,-702.31,0.00014999,2]
[422384024,1778917839000,-500.0,0.00014999,2]
[422384023,1778917839000,-500.0,0.00014999,2]
[422384015,1778917839000,-702.31,0.00014999,2]
[422383991,1778917839000,-500.0,0.00014999,2]
[422383986,1778917839000,-500.0,0.00014999,2]
[422383988,1778917839000,-500.0,0.00014999,2]
[422383990,1778917839000,-500.0,0.00014999,2]
[422383989,1778917839000,-500.0,0.00014999,2]
[422383993,1778917839000,-500.0,0.00014999,2]
[422383992,1778917839000,-500.0,0.00014999,2]
[422383994,1778917839000,-500.0,0.00014999,2]
[422383996,1778917839000,-500.0,0.00014999,2]
[422383999,1778917839000,-500.0,0.00014999,2]
[422384009,1778917839000,-702.31,0.00014999,2]
[422384000,1778917839000,-500.0,0.00014999,2]
[422383997,1778917839000,-500.0,0.00014999,2]
[422383998,1778917839000,-500.0,0.00014999,2]
[422384006,1778917839000,-702.31,0.00014999,2]
[422384001,1778917839000,-500.0,0.00014999,2]
[422384002,1778917839000,-500.0,0.00014999,2]
[422384004,1778917839000,-618.71395317,0.00014999,2]
[422384005,1778917839000,-702.31,0.00014999,2]
[422384008,1778917839000,-702.31,0.00014999,2]
[422384007,1778917839000,-702.31,0.00014999,2]
[422384010,1778917839000,-702.31,0.00014999,2]
[422384021,1778917839000,-702.33461365,0.00014999,2]
[422384003,1778917839000,-500.0,0.00014999,2]
[422383987,1778917839000,-500.0,0.00014999,2]
[422384052,1778917848000,-9594.79998017,0.00015,2]
[422384046,1778917848000,-926530.13305354,0.00015,2]
[422384047,1778917848000,-400.74986217,0.00015,2]
[422384048,1778917848000,-7705.80141735,0.00015,2]
[422384053,1778917848000,-1464.27843,0.00015,2]
[422384049,1778917848000,-1126.44939218,0.00015,2]
[422384054,1778917848000,-314235.39903477,0.00015,2]
[422384050,1778917848000,-1860.44084393,0.00015,2]
[422384051,1778917848000,-5668.67614547,0.00015,2]
[422384062,1778917849000,-48828.25568551,0.00015,2]
[422384057,1778917849000,-929.27452614,0.00015,2]
[422384056,1778917849000,-253.52,0.00015,2]
[422384055,1778917849000,-8011.66471938,0.00015,2]
[422384072,1778917872000,47365.873498,0.00030136,120]
[422384073,1778917905000,176.0,0.00030136,120]
[422384076,1778918030000,450.0,0.00030136,120]
[422384083,1778918116000,29272.9631864,0.0003,120]
[422384085,1778918190000,416.875,0.00030136,120]
[422384086,1778918190000,416.875,0.00030136,120]
[422384087,1778918191000,416.875,0.00030136,120]
[422384091,1778918192000,416.875,0.00030136,120]
[422384090,1778918192000,416.875,0.00030136,120]
[422384089,1778918192000,416.875,0.00030136,120]
[422384088,1778918192000,416.875,0.00030136,120]
[422384092,1778918193000,416.875,0.00030136,120]
[422384096,1778918598000,8026.0,0.00030136,120]
[422384100,1778918866000,-10000.0,0.000107,2]
[422384101,1778918868000,-8400.47643739,0.000107,2]
[422384104,1778918940000,832.47836948,0.0001,2]
[422384105,1778918947000,898.823837,7.945e-05,2]
[422384107,1778919031000,476.43039609,0.0001,2]
[422384129,1778919032000,-1852.42,0.00013651,2]
[422384128,1778919032000,-300.0,0.0001365,2]
[422384130,1778919032000,-166.66,0.00013699,2]
[422384131,1778919032000,-200.0,0.00013699,2]
[422384133,1778919032000,-214.55,0.00013699,2]
[422384135,1778919032000,-894.0,0.00013699,2]
[422384137,1778919032000,-252.71,0.00013786,2]
[422384134,1778919032000,-178.8,0.00013699,2]
[422384132,1778919032000,-257.46,0.00013699,2]
[422384124,1778919032000,-1200.0,0.00013578,2]
[422384139,1778919032000,-166.66,0.00013973,2]
[422384138,1778919032000,-166.66,0.00013836,2]
[422384136,1778919032000,-423.08,0.00013699,2]
[422384125,1778919032000,-2000.0,0.00013579,2]
[422384112,1778919032000,-1443.88458016,0.00011979,2]
[422384122,1778919032000,-198.31703428,0.00013488,2]
[422384121,1778919032000,-241.09766686,0.00013488,2]
[422384120,1778919032000,-178.57,0.00013435,2]
[422384117,1778919032000,-896.56,0.00013291,2]
[422384119,1778919032000,-400.0,0.00013356,2]
[422384127,1778919032000,-300.0,0.0001365,2]
[422384126,1778919032000,-158.74,0.00013588,2]
[422384118,1778919032000,-200.0,0.00013356,2]
[422384116,1778919032000,-168.82,0.00013153,2]
[422384115,1778919032000,-422.023055,0.00013053,2]
[422384114,1778919032000,-684.53050379,0.00013053,2]
[422384113,1778919032000,-172.48491608,0.00013053,2]
[422384140,1778919032000,-260.92123607,0.00013997,2]
[422384123,1778919032000,-894.19992694,0.00013539,2]
[422384142,1778919032000,-1500.0,0.00014,2]
[422384147,1778919032000,-350.0,0.00014273,2]
[422384143,1778919032000,-178.57,0.00014107,2]
[422384144,1778919032000,-166.66,0.0001411,2]
[422384176,1778919032000,-2872.94011866,0.00014559,2]
[422384174,1778919032000,-23169.51243338,0.00014505,2]
[422384171,1778919032000,-248.48622635,0.00014505,2]
[422384185,1778919032000,-1350.86201481,0.00014582,2]
[422384183,1778919032000,-2500.0,0.00014582,2]
[422384170,1778919032000,-2872.94011868,0.00014502,2]
[422384162,1778919032000,-150.0,0.00014452,2]
[422384161,1778919032000,-150.0,0.00014452,2]
[422384163,1778919032000,-150.0,0.00014452,2]
[422384158,1778919032000,-340.18155438,0.00014452,2]
[422384160,1778919032000,-150.0,0.00014452,2]
[422384166,1778919032000,-2500.0,0.000145,2]
[422384154,1778919032000,-500.0,0.00014452,2]
[422384180,1778919032000,-6054.0,0.0001457,2]
[422384167,1778919032000,-67729.8198,0.000145,2]
[422384164,1778919032000,-181.52506737,0.00014452,2]
[422384145,1778919032000,-150.0,0.0001411,2]
[422384150,1778919032000,-166.66,0.00014384,2]
[422384148,1778919032000,-152.0,0.00014314,7]
[422384152,1778919032000,-500.0,0.00014452,2]
[422384141,1778919032000,-250.0,0.00014,2]
[422384149,1778919032000,-263.72,0.00014334,2]
[422384178,1778919032000,-3631.0,0.0001457,2]
[422384151,1778919032000,-350.0,0.00014418,2]
[422384146,1778919032000,-166.66,0.00014247,2]
[422384155,1778919032000,-500.0,0.00014452,2]
[422384159,1778919032000,-286.1406342,0.00014452,2]
[422384157,1778919032000,-150.0,0.00014452,2]
[422384230,1778919038000,-731.61027586,0.00014673,2]
[422384220,1778919038000,-500.0,0.00014599,2]
[422384221,1778919038000,-622.41,0.00014599,2]
[422384222,1778919038000,-500.0,0.00014599,2]
[422384226,1778919038000,-676.91610992,0.00014616,2]
[422384227,1778919038000,-2196.02400874,0.00014616,2]
[422384219,1778919038000,-501.43600188,0.00014599,2]
[422384223,1778919038000,-500.0,0.00014599,2]
[422384232,1778919038000,-204.42794,0.00014696,2]
[422384224,1778919038000,-169.768388,0.00014602,2]
[422384228,1778919038000,-350.0,0.00014647,2]
[422384229,1778919038000,-166.85,0.00014649,2]
[422384231,1778919038000,-2141.3298428,0.00014673,2]
[422384233,1778919038000,-173.766918,0.00014696,2]
[422384235,1778919038000,-1378.877022,0.00014696,2]
[422384218,1778919038000,-500.0,0.00014599,2]
[422384225,1778919038000,-173.435807,0.00014602,2]
[422384217,1778919038000,-500.0,0.00014599,2]
[422384205,1778919038000,-300.0,0.00014582,2]
[422384215,1778919038000,-500.0,0.00014599,2]
[422384198,1778919038000,-2500.0,0.00014582,2]
[422384197,1778919038000,-1149.13798519,0.00014582,2]
[422384199,1778919038000,-2500.0,0.00014582,2]
[422384201,1778919038000,-300.0,0.00014582,2]
[422384234,1778919038000,-160.0,0.00014696,2]
[422384200,1778919038000,-2500.0,0.00014582,2]
[422384204,1778919038000,-300.0,0.00014582,2]
[422384202,1778919038000,-300.0,0.00014582,2]
[422384203,1778919038000,-300.0,0.00014582,2]
[422384207,1778919038000,-637.10892931,0.00014599,2]
[422384206,1778919038000,-500.0,0.00014582,2]
[422384209,1778919038000,-157.6152518,0.00014599,2]
[422384208,1778919038000,-500.0,0.00014599,2]
[422384210,1778919038000,-500.0,0.00014599,2]
[422384216,1778919038000,-500.0,0.00014599,2]
[422384212,1778919038000,-500.0,0.00014599,2]
[422384211,1778919038000,-500.0,0.00014599,2]
[422384214,1778919038000,-500.0,0.00014599,2]
[422384240,1778919038000,-350.0,0.0001471,2]
[422384213,1778919038000,-500.0,0.00014599,2]
[422384237,1778919038000,-33147.836,0.00014699,2]
[422384262,1778919038000,-500.0,0.00014799,2]
[422384261,1778919038000,-419.83398401,0.00014799,2]
[422384269,1778919038000,-500.0,0.00014799,2]
[422384259,1778919038000,-500.0,0.00014799,2]
[422384263,1778919038000,-500.0,0.00014799,2]
[422384266,1778919038000,-500.0,0.00014799,2]
[422384264,1778919038000,-500.0,0.00014799,2]
[422384268,1778919038000,-500.0,0.00014799,2]
[422384265,1778919038000,-500.0,0.00014799,2]
[422384267,1778919038000,-500.0,0.00014799,2]
[422384270,1778919038000,-500.0,0.00014799,2]
[422384271,1778919038000,-500.0,0.00014799,2]
[422384274,1778919038000,-500.0,0.00014799,2]
[422384272,1778919038000,-501.98442296,0.00014799,2]
[422384276,1778919038000,-500.0,0.00014799,2]
[422384238,1778919038000,-182.11016825,0.000147,2]
[422384275,1778919038000,-310.93733253,0.00014799,2]
[422384260,1778919038000,-500.0,0.00014799,2]
[422384258,1778919038000,-500.0,0.00014799,2]
[422384273,1778919038000,-500.0,0.00014799,2]
[422384241,1778919038000,-430.0,0.00014729,2]
[422384236,1778919038000,-2597.754044,0.00014696,2]
[422384257,1778919038000,-500.0,0.00014799,2]
[422384239,1778919038000,-350.0,0.00014705,2]
[422384243,1778919038000,-476.0,0.00014736,2]
[422384245,1778919038000,-176.174741,0.00014769,2]
[422384255,1778919038000,-500.0,0.00014793,2]
[422384244,1778919038000,-160.0,0.00014769,2]
[422384247,1778919038000,-263.520391,0.0001477,2]
[422384242,1778919038000,-2872.94011866,0.00014729,2]
[422384249,1778919038000,-430.0,0.00014783,2]
[422384248,1778919038000,-178.57,0.00014779,2]
[422384250,1778919038000,-2872.94011866,0.00014786,2]
[422384252,1778919038000,-500.0,0.00014793,2]
[422384254,1778919038000,-500.0,0.00014793,2]
[422384256,1778919038000,-500.0,0.00014793,2]
[422384253,1778919038000,-509.75253239,0.00014793,2]
[422384251,1778919038000,-430.0,0.00014789,2]
[422384246,1778919038000,-192.349482,0.00014769,2]
[422384277,1778919039000,-508.81029755,0.00014799,2]
[422384278,1778919039000,-500.0,0.00014799,2]
[422384279,1778919039000,-500.0,0.00014799,2]
[422384280,1778919039000,-473.01962848,0.00014799,2]
[422384283,1778919039000,-500.0,0.0001482,2]
[422384282,1778919039000,-500.0,0.0001482,2]
[422384281,1778919039000,-500.0,0.0001481,2]
[422384444,1778919040000,-500.0,0.00014999,2]
[422384442,1778919040000,-500.0,0.00014999,2]
[422384440,1778919040000,-622.59461365,0.00014999,2]
[422384441,1778919040000,-500.0,0.00014999,2]
[422384436,1778919040000,-500.0,0.00014999,2]
[422384461,1778919040000,-500.0,0.00014999,2]
[422384438,1778919040000,-500.0,0.00014999,2]
[422384437,1778919040000,-622.41,0.00014999,2]
[422384435,1778919040000,-622.41,0.00014999,2]
[422384428,1778919040000,-500.0,0.00014999,2]
[422384443,1778919040000,-500.0,0.00014999,2]
[422384423,1778919040000,-622.41,0.00014999,2]
[422384439,1778919040000,-500.0,0.00014999,2]
[422384445,1778919040000,-500.0,0.00014999,2]
[422384449,1778919040000,-500.0,0.00014999,2]
[422384447,1778919040000,-500.0,0.00014999,2]
[422384448,1778919040000,-500.0,0.00014999,2]
[422384453,1778919040000,-500.0,0.00014999,2]
[422384454,1778919040000,-500.0,0.00014999,2]
[422384457,1778919040000,-500.0,0.00014999,2]
[422384458,1778919040000,-500.0,0.00014999,2]
[422384450,1778919040000,-500.0,0.00014999,2]
[422384452,1778919040000,-500.0,0.00014999,2]
[422384455,1778919040000,-500.0,0.00014999,2]
[422384451,1778919040000,-500.0,0.00014999,2]
[422384456,1778919040000,-500.0,0.00014999,2]
[422384459,1778919040000,-500.0,0.00014999,2]
[422384429,1778919040000,-622.41,0.00014999,2]
[422384446,1778919040000,-500.0,0.00014999,2]
[422384430,1778919040000,-500.0,0.00014999,2]
[422384409,1778919040000,-622.41,0.00014999,2]
[422384427,1778919040000,-622.41,0.00014999,2]
[422384471,1778919040000,-500.0,0.00014999,2]
[422384406,1778919040000,-582.0407918,0.00014999,2]
[422384408,1778919040000,-622.41,0.00014999,2]
[422384403,1778919040000,-500.0,0.00014999,2]
[422384407,1778919040000,-622.41,0.00014999,2]
[422384402,1778919040000,-500.0,0.00014999,2]
[422384401,1778919040000,-288.80366412,0.00014999,2]
[422384404,1778919040000,-500.0,0.00014999,2]
[422384405,1778919040000,-500.0,0.00014999,2]
[422384410,1778919040000,-622.41,0.00014999,2]
[422384411,1778919040000,-622.41,0.00014999,2]
[422384413,1778919040000,-622.41,0.00014999,2]
[422384420,1778919040000,-500.0,0.00014999,2]
[422384431,1778919040000,-622.41,0.00014999,2]
[422384417,1778919040000,-622.41,0.00014999,2]
[422384416,1778919040000,-500.0,0.00014999,2]
[422384414,1778919040000,-500.0,0.00014999,2]
[422384415,1778919040000,-622.41,0.00014999,2]
[422384419,1778919040000,-622.41,0.00014999,2]
[422384418,1778919040000,-500.0,0.00014999,2]
[422384421,1778919040000,-500.0,0.00014999,2]
[422384422,1778919040000,-622.41,0.00014999,2]
[422384432,1778919040000,-500.0,0.00014999,2]
[422384433,1778919040000,-622.41,0.00014999,2]
[422384434,1778919040000,-500.0,0.00014999,2]
[422384425,1778919040000,-622.41,0.00014999,2]
[422384426,1778919040000,-500.0,0.00014999,2]
[422384424,1778919040000,-500.0,0.00014999,2]
[422384412,1778919040000,-500.0,0.00014999,2]
[422384472,1778919040000,-500.0,0.00014999,2]
[422384502,1778919040000,-300.0,0.00014999,2]
[422384462,1778919040000,-500.0,0.00014999,2]
[422384494,1778919040000,-500.0,0.00014999,2]
[422384500,1778919040000,-445.50221728,0.00014999,2]
[422384499,1778919040000,-500.0,0.00014999,2]
[422384501,1778919040000,-500.0,0.00014999,2]
[422384506,1778919040000,-300.0,0.00014999,2]
[422384503,1778919040000,-671.07197812,0.00014999,2]
[422384505,1778919040000,-300.0,0.00014999,2]
[422384510,1778919040000,-1540.0,0.00015,2]
[422384504,1778919040000,-300.0,0.00014999,2]
[422384509,1778919040000,-1540.0,0.00015,2]
[422384508,1778919040000,-690.0,0.00015,5]
[422384507,1778919040000,-666.0,0.00014999,2]
[422384512,1778919040000,-1540.0,0.00015,2]
[422384495,1778919040000,-500.0,0.00014999,2]
[422384523,1778919040000,-1540.0,0.00015,2]
[422384518,1778919040000,-202.35313272,0.00015,2]
[422384515,1778919040000,-1540.0,0.00015,2]
[422384522,1778919040000,-1540.0,0.00015,2]
[422384514,1778919040000,-151.0,0.00015,2]
[422384511,1778919040000,-1540.0,0.00015,2]
[422384513,1778919040000,-1540.0,0.00015,2]
[422384517,1778919040000,-1540.0,0.00015,2]
[422384520,1778919040000,-1540.0,0.00015,2]
[422384521,1778919040000,-1540.0,0.00015,2]
[422384519,1778919040000,-1540.0,0.00015,2]
[422384524,1778919040000,-1540.0,0.00015,2]
[422384526,1778919040000,-1540.0,0.00015,2]
[422384525,1778919040000,-1540.0,0.00015,2]
[422384460,1778919040000,-500.0,0.00014999,2]
[422384496,1778919040000,-500.0,0.00014999,2]
[422384516,1778919040000,-151.0,0.00015,2]
[422384497,1778919040000,-500.0,0.00014999,2]
[422384464,1778919040000,-500.0,0.00014999,2]
[422384467,1778919040000,-500.0,0.00014999,2]
[422384465,1778919040000,-500.0,0.00014999,2]
[422384466,1778919040000,-500.0,0.00014999,2]
[422384463,1778919040000,-200.16128818,0.00014999,2]
[422384468,1778919040000,-500.0,0.00014999,2]
[422384470,1778919040000,-500.0,0.00014999,2]
[422384469,1778919040000,-399.11389767,0.00014999,2]
[422384474,1778919040000,-500.0,0.00014999,2]
[422384485,1778919040000,-500.0,0.00014999,2]
[422384484,1778919040000,-500.0,0.00014999,2]
[422384486,1778919040000,-500.0,0.00014999,2]
[422384475,1778919040000,-500.0,0.00014999,2]
[422384493,1778919040000,-500.0,0.00014999,2]
[422384476,1778919040000,-500.0,0.00014999,2]
[422384477,1778919040000,-500.0,0.00014999,2]
[422384492,1778919040000,-500.0,0.00014999,2]
[422384491,1778919040000,-500.0,0.00014999,2]
[422384489,1778919040000,-500.0,0.00014999,2]
[422384490,1778919040000,-500.0,0.00014999,2]
[422384487,1778919040000,-500.0,0.00014999,2]
[422384473,1778919040000,-500.0,0.00014999,2]
[422384498,1778919040000,-500.0,0.00014999,2]
[422384479,1778919040000,-500.0,0.00014999,2]
[422384481,1778919040000,-500.0,0.00014999,2]
[422384483,1778919040000,-500.0,0.00014999,2]
[422384478,1778919040000,-500.0,0.00014999,2]
[422384482,1778919040000,-500.0,0.00014999,2]
[422384480,1778919040000,-500.0,0.00014999,2]
[422384488,1778919040000,-500.0,0.00014999,2]
[422384527,1778919041000,-1540.0,0.00015,2]
[422384529,1778919041000,-1684.50576064,0.00015,2]
[422384530,1778919041000,-150.0,0.00015,2]
[422384532,1778919041000,-1777562.29635455,0.00015,2]
[422384528,1778919041000,-1540.0,0.00015,2]
[422384533,1778919041000,-3226.01490004,0.00015,2]
[422384534,1778919041000,-299.54,0.00015,2]
[422384531,1778919041000,-1569796.42287453,0.00015,2]
[422384535,1778919042000,-268.92653127,0.00015,2]
[422384542,1778919043000,-82338.22958155,0.00015,2]
[422384541,1778919043000,-204153.42114427,0.00015,2]